bitfinex/quotes_ETHUSD_20260203
["timestamp","ask_amount","ask_price","bid_price","bid_amount"]
[1770110061223,0.90207477,2293.1,2291.9,0.001]
[1770110061398,3.08454595,2293.0,2291.5,0.003]
[1770110061602,1.09036985,2292.8,2291.5,0.003]
[1770110061911,3.12751448,2292.8,2291.2,12.52499839]
[1770110062099,6.03714463,2292.7,2291.1,0.0008]
[1770110062300,0.90207477,2292.6,2291.1,0.0008]
[1770110062510,0.90207477,2292.5,2291.1,12.52579839]
[1770110062844,4.0,2292.7,2291.1,12.52579839]
[1770110063016,0.90164686,2292.6,2291.1,12.52579839]
[1770110063212,0.90164686,2292.5,2291.1,12.52579839]
[1770110063412,0.90174407,2292.4,2291.1,12.52579839]
[1770110063644,1.09046497,2292.6,2291.1,12.52579839]
[1770110063944,0.90174065,2292.5,2291.1,13.61696525]
[1770110064143,1.09046497,2292.6,2291.1,13.61696525]
[1770110064316,0.90184238,2292.5,2291.1,13.61696525]
[1770110064513,0.90184238,2292.4,2291.1,13.61696525]
[1770110064744,2.21764078,2292.6,2291.1,13.61696525]
[1770110064745,1.09046497,2292.6,2291.1,13.61696525]
[1770110064920,0.90255009,2292.5,2291.1,13.61696525]
[1770110065125,0.90255009,2292.4,2291.1,13.61696525]
[1770110065346,2.21764078,2292.6,2291.1,13.61696525]
[1770110065535,0.90274729,2292.5,2291.1,13.61696525]
[1770110065739,1.9933074,2292.4,2291.1,13.61696525]
[1770110066048,1.09056011,2292.4,2291.1,13.61696525]
[1770110068650,2.21745055,2293.1,2291.1,13.61696525]
[1770110068820,0.01656488,2292.2,2291.1,13.61696525]
[1770110069023,4.36110858,2293.0,2291.2,12.52499839]
[1770110069442,4.36033938,2293.4,2291.2,12.52499839]
[1770110069649,0.90220365,2293.3,2291.2,12.52499839]
[1770110069840,1.09003706,2293.5,2291.4,12.52499839]
[1770110070145,0.90220767,2293.4,2291.6,12.52499839]
[1770110070372,0.90220767,2293.3,2291.6,12.52499839]
[1770110070519,0.1035,2294.0,2291.6,12.52499839]
[1770110070520,0.0011,2294.0,2291.6,12.52499839]
[1770110070720,0.0011,2294.0,2292.0,12.52499839]
[1770110070948,0.0011,2294.0,2292.0,12.99213362]
[1770110071149,0.0011,2294.0,2292.1,12.52499839]
[1770110071857,0.0011,2294.0,2292.3,12.52499839]
[1770110073768,0.0011,2294.2,2292.8,12.52499839]
[1770110073959,0.0011,2294.2,2293.0,12.52499839]
[1770110074457,0.0011,2293.2,2293.0,12.52499839]
[1770110074758,0.0011,2294.2,2293.0,12.52499839]
[1770110075140,0.0011,2293.4,2293.0,12.52499839]
[1770110075373,0.0011,2294.2,2293.0,12.52499839]
[1770110076169,0.0011,2294.2,2293.2,12.52499839]
[1770110078038,0.0011,2294.2,2293.3,1.09013212]
[1770110078239,0.0011,2294.2,2293.4,12.52499839]
[1770110078446,0.0011,2294.2,2290.5,3.87990364]
[1770110078447,1.6365324,2292.3,2290.5,3.87990364]
[1770110078754,1.5258,2294.1,2287.1,0.1119715]
[1770110078755,6.884199,2287.8,2287.1,0.1119715]
[1770110079059,21.20142026,2286.4,2286.2,0.0008]
[1770110079371,7.68719817,2287.5,2286.2,0.0008]
[1770110079588,1.034738,2285.7,2284.8,0.0008]
[1770110079744,1.48924162,2285.8,2285.6,19.12737759]
[1770110080089,3.74523397,2286.6,2285.6,11.31022087]
[1770110080241,8.064608,2285.7,2285.6,11.31022087]
[1770110080442,8.064608,2286.7,2285.7,0.90071456]
[1770110080675,1.99100285,2286.8,2285.6,1.09379876]
[1770110080967,1.47265913,2286.8,2285.6,12.52499839]
[1770110081138,1.47265913,2286.8,2285.5,0.0008]
[1770110081543,1.47265913,2286.8,2285.6,1.09378759]
[1770110081768,1.26250285,2286.8,2285.5,0.0008]
[1770110082071,1.26250285,2286.8,2285.8,1.09370898]
[1770110082369,1.26250285,2286.8,2285.8,13.61870737]
[1770110083166,4.37035948,2288.2,2285.8,13.61870737]
[1770110083740,1.09251409,2288.3,2285.8,13.61870737]
[1770110083961,7.46417954,2288.4,2286.2,12.52499839]
[1770110084161,7.46417954,2288.4,2286.6,12.52499839]
[1770110085247,7.46417954,2288.4,2286.8,12.52499839]
[1770110085437,7.46417954,2288.4,2287.0,12.52499839]
[1770110086070,1.09220147,2289.0,2287.0,12.52499839]
[1770110086278,11.95328848,2290.3,2287.3,12.52499839]
[1770110086279,1.09175073,2289.9,2287.3,12.52499839]
[1770110086573,1.09175073,2289.9,2287.1,1.09308731]
[1770110086574,1.09175073,2289.9,2287.9,12.52499839]
[1770110086870,1.09175073,2289.9,2288.1,12.52499839]
[1770110087245,1.09165538,2290.1,2288.1,12.52499839]
[1770110087441,1.09165538,2290.1,2288.2,13.43999839]
[1770110087671,1.09156005,2290.3,2288.2,13.43999839]
[1770110087971,1.09152856,2290.4,2288.2,13.43999839]
[1770110088266,4.36209668,2291.0,2288.4,12.52499839]
[1770110088472,4.36406741,2291.5,2288.4,12.52499839]
[1770110088473,5.24332756,2292.0,2288.5,13.04878898]
[1770110088689,7.72108562,2292.4,2290.4,12.52499839]
[1770110088690,1.09065526,2292.2,2290.4,12.52499839]
[1770110088843,1.09065526,2292.2,2290.5,0.915]
[1770110089254,1.09065526,2292.2,2290.6,0.915]
[1770110089440,1.39681639,2292.4,2290.7,0.915]
[1770110089652,1.39682555,2292.4,2290.7,13.43999839]
[1770110089856,1.09041741,2292.7,2290.7,13.43999839]
[1770110090068,1.09041741,2292.7,2290.7,12.52499839]
[1770110090270,17.06510532,2293.1,2290.9,1.09127417]
[1770110090271,0.01108049,2292.6,2290.9,1.09127417]
[1770110090671,0.01108049,2292.6,2291.0,0.915]
[1770110092174,1.97317158,2292.5,2291.1,1.0911789]
[1770110092379,0.01108049,2292.4,2291.2,0.915]
[1770110092882,0.01108049,2292.4,2291.3,0.915]
[1770110093050,0.01108049,2292.4,2291.1,13.8527804]
[1770110093252,0.01108049,2292.4,2291.2,0.915]
[1770110093452,0.01108049,2292.4,2291.3,0.915]
[1770110093859,0.01108049,2292.4,2291.1,13.8527804]
[1770110094066,0.01108049,2292.4,2291.1,1.0911789]
[1770110094264,1.09060768,2292.3,2290.9,0.915]
[1770110094469,0.1120732,2291.0,2290.9,0.915]
[1770110094782,0.01108049,2292.2,2290.6,4.36548299]
[1770110094954,0.01108049,2292.2,2290.7,0.915]
[1770110095565,0.01108049,2292.2,2290.8,11.81450295]
[1770110096086,0.01108049,2292.2,2290.7,0.915]
[1770110096342,0.01108049,2292.2,2290.3,4.36566838]
[1770110096343,0.22690722,2286.7,2282.9,4.38037144]
[1770110096480,17.696371,2285.0,2283.1,4.37986057]
[1770110096791,17.696371,2284.8,2283.4,13.0]
[1770110096963,17.696371,2284.8,2283.0,1.09505037]
[1770110096964,17.696371,2284.8,2283.6,13.0]
[1770110097285,17.696371,2284.3,2283.6,13.0]
[1770110097588,0.1024,2286.6,2283.8,11.81450295]
[1770110097788,0.1024,2286.4,2283.8,11.81450295]
[1770110098097,0.1024,2286.2,2283.8,11.81450295]
[1770110098291,1.09361329,2286.0,2283.9,12.9091218]
[1770110098587,1.09361329,2286.0,2283.9,11.81450295]
[1770110098792,1.09361329,2286.0,2283.9,11.75297895]
[1770110098988,1.09361329,2286.0,2283.9,12.8475978]
[1770110099194,0.3359703,2285.9,2283.2,11.81450295]
[1770110099393,0.2335703,2285.9,2283.4,1.09484124]
[1770110099565,0.2335703,2285.9,2283.8,11.81450295]
[1770110099892,1.09361329,2286.0,2283.8,12.90914694]
[1770110100113,0.1024,2286.3,2283.8,12.90914694]
[1770110100287,1.09332633,2286.6,2283.8,12.90914694]
[1770110100698,1.09332633,2286.6,2284.0,11.81450295]
[1770110100918,1.09332633,2286.6,2283.8,12.90916383]
[1770110101424,4.60021256,2286.7,2284.7,12.86905533]
[1770110101425,0.22690722,2286.7,2284.7,12.86905533]
[1770110101788,0.22690722,2286.7,2284.7,13.78505533]
[1770110102292,1.09314378,2287.0,2284.9,12.86905533]
[1770110103622,0.1024,2286.8,2284.9,12.86905533]
[1770110103991,0.1024,2286.9,2284.9,12.86905533]
[1770110104189,1.0928484,2287.6,2285.1,12.86905533]
[1770110104526,1.0928484,2287.6,2285.1,12.76370593]
[1770110104699,0.1024,2287.3,2285.1,12.76370593]
[1770110104901,0.1024,2287.3,2285.1,12.70218193]
[1770110105198,0.1024,2287.5,2285.1,12.70218193]
[1770110105407,2.18087152,2287.2,2285.0,12.86905533]
[1770110105705,0.87458958,2287.1,2285.0,12.86905533]
[1770110105908,1.09265734,2288.0,2285.0,12.86905533]
[1770110106223,2.18087152,2288.1,2285.4,12.86905533]
[1770110106224,1.09275286,2287.8,2285.4,12.86905533]
[1770110106396,0.87545043,2287.7,2285.4,12.86905533]
[1770110106794,1.09275286,2287.8,2285.4,12.86905533]
[1770110107190,4.37101145,2287.9,2285.4,12.86905533]
[1770110107489,0.87964657,2287.8,2285.4,12.86905533]
[1770110107695,4.3700742,2288.3,2285.9,12.86905533]
[1770110107932,0.87975333,2288.2,2285.9,13.78505533]
[1770110108104,1.09249797,2288.4,2285.9,13.78505533]
[1770110108105,11.75836257,2288.5,2285.9,13.78505533]
[1770110108302,1.97236672,2288.4,2286.1,12.86905533]
[1770110108515,0.87990032,2288.3,2286.1,12.86905533]
[1770110109022,0.87990032,2288.3,2286.1,12.81368373]
[1770110109393,1.09247157,2288.4,2286.1,12.81368373]
[1770110109589,1.09221727,2289.0,2286.4,12.97145533]
[1770110109821,0.88298107,2288.9,2286.6,12.86905533]
[1770110110008,1.09208457,2289.3,2286.6,12.86905533]
[1770110110209,0.88303052,2289.2,2286.6,12.86905533]
[1770110110523,0.88303052,2289.2,2287.0,12.86905533]
[1770110110524,0.88303052,2289.1,2287.0,12.86905533]
[1770110110824,0.88303052,2289.0,2287.0,12.86905533]
[1770110111030,2.35477665,2288.9,2287.0,12.86905533]
[1770110111226,0.88303052,2288.8,2287.0,12.86905533]
[1770110111525,0.88303052,2288.7,2287.0,12.86905533]
[1770110111733,0.88303052,2288.6,2287.0,12.86905533]
[1770110111895,0.88303052,2288.5,2287.0,12.86905533]
[1770110112096,0.88303052,2288.4,2287.0,12.86905533]
[1770110112428,0.88350195,2288.3,2287.1,1.09308731]
[1770110112632,5.84090758,2288.8,2287.1,1.09308731]
[1770110112633,1.47174613,2288.8,2287.1,13.96214264]
[1770110112808,1.47174613,2289.6,2287.3,12.86905533]
[1770110112997,0.8838681,2289.5,2287.4,12.86905533]
[1770110113197,1.49330613,2289.7,2287.4,12.86905533]
[1770110113198,0.8838681,2289.4,2287.4,12.86905533]
[1770110113501,0.02156,2289.7,2287.4,12.86905533]
[1770110113696,0.02156,2289.7,2288.0,12.86905533]
[1770110114197,1.09489715,2290.2,2288.0,12.86905533]
[1770110114396,0.88399731,2290.1,2288.2,12.76992831]
[1770110114629,0.88399731,2290.0,2288.2,12.76992831]
[1770110114924,0.00328,2290.2,2288.4,12.86905533]
[1770110115139,0.88400296,2290.1,2288.4,12.86905533]
[1770110115352,0.00328,2290.2,2288.6,12.86905533]
[1770110115717,0.00328,2290.2,2288.0,6.87340345]
[1770110115718,2.12159393,2286.1,2281.7,15.02043844]
[1770110115915,3.30310419,2283.1,2281.7,12.86905533]
[1770110116124,3.17627148,2282.7,2281.2,4.38431058]
[1770110116352,3.17627148,2283.1,2281.9,12.86905533]
[1770110116549,3.17627148,2282.7,2281.9,12.86905533]
[1770110116712,3.17627148,2283.0,2281.9,12.86905533]
[1770110116917,3.17627148,2283.1,2281.9,12.86905533]
[1770110117149,1.44904307,2284.0,2281.9,12.86905533]
[1770110117324,4.61147065,2284.3,2281.9,12.86905533]
[1770110117325,2.303105,2283.0,2281.9,12.86905533]
[1770110118049,4.37751809,2284.4,2281.9,12.86905533]
[1770110118050,1.09438319,2284.4,2281.9,12.86905533]
[1770110118415,1.09438319,2284.4,2282.1,12.86905533]
[1770110118718,1.1095141,2284.3,2282.1,12.81922089]
[1770110118910,1.09438319,2284.4,2282.1,12.81922089]
[1770110119335,1.09438319,2284.4,2281.9,11.97593258]
[1770110119336,2.76764994,2284.2,2281.9,1.09556819]
[1770110119523,0.2335703,2283.9,2281.9,1.09554723]
[1770110119722,1.46870895,2284.3,2281.9,13.96460256]
[1770110119949,1.3214648,2284.5,2282.3,12.86905533]
[1770110120159,1.95196088,2284.5,2282.3,13.78505533]
[1770110120346,1.95196088,2284.5,2282.4,13.51408807]
[1770110120347,1.3214648,2284.5,2282.4,13.51408807]
[1770110120664,0.22712162,2284.5,2282.4,13.51408807]
[1770110120850,1.32149013,2284.5,2282.4,13.51408807]
[1770110121245,1.09436851,2284.5,2282.4,13.51408807]
[1770110121651,1.46870895,2285.1,2282.4,13.51408807]
[1770110121652,1.46870895,2286.6,2284.6,1.45265]
[1770110121866,3.66434547,2287.3,2284.6,1.45265]
[1770110121867,1.09323071,2286.8,2284.7,12.41874983]
[1770110122046,1.46870895,2287.1,2284.7,13.33574983]
[1770110122047,1.09313511,2287.0,2284.7,13.33574983]
[1770110122248,0.87762377,2286.9,2284.7,13.33574983]
[1770110122479,1.97085448,2286.8,2284.8,1.09418767]
[1770110122636,1.09311452,2287.1,2284.8,13.5129375]
[1770110122963,0.87962385,2287.0,2284.8,13.5129375]
[1770110123130,1.09306229,2287.2,2284.8,13.5129375]
[1770110123333,2.34825518,2287.1,2284.8,13.5129375]
[1770110123636,0.87954623,2287.0,2284.8,13.5129375]
[1770110123943,4.37215809,2287.3,2284.8,13.5129375]
[1770110123944,1.09299714,2287.3,2284.8,13.5129375]
[1770110124141,0.88196386,2287.2,2285.1,12.41874983]
[1770110124348,0.88196386,2287.2,2285.3,12.41874983]
[1770110124349,0.88196386,2287.1,2285.3,12.41874983]
[1770110124658,0.88196386,2287.0,2285.3,12.32510822]
[1770110124850,0.88196386,2286.9,2285.3,12.32510822]
[1770110125027,2.5617187,2287.3,2285.3,12.32510822]
[1770110125028,0.88196386,2286.8,2285.3,12.32510822]
[1770110125232,1.46870895,2287.0,2285.3,12.32510822]
[1770110125557,0.88703561,2286.9,2285.3,12.32510822]
[1770110125862,0.88703561,2286.8,2285.3,12.32510822]
[1770110126028,0.88703561,2286.7,2285.3,12.32510822]
[1770110126229,2.20306343,2287.0,2285.3,12.32510822]
[1770110126436,11.96323654,2288.7,2285.3,12.32510822]
[1770110126437,2.93741791,2287.5,2285.4,13.51265024]
[1770110126630,2.93741791,2287.6,2285.4,13.51265024]
[1770110126834,2.93741791,2287.4,2285.4,13.51265024]
[1770110127053,2.93741791,2287.6,2285.4,13.51265024]
[1770110127765,2.93741791,2287.7,2285.4,13.51265024]
[1770110127932,0.01825772,2287.8,2285.4,13.51265024]
[1770110128138,0.01825772,2287.8,2285.6,12.41874983]
[1770110128451,0.01825772,2287.8,2286.1,12.41874983]
[1770110128635,0.01825772,2287.8,2286.2,13.33574983]
[1770110129039,1e-08,2287.8,2286.2,13.33574983]
[1770110129834,1e-08,2287.8,2286.5,12.41874983]
[1770110130262,1e-08,2287.8,2286.0,1.09361329]
[1770110130476,1e-08,2287.8,2286.0,13.51236312]
[1770110130776,1e-08,2287.8,2286.4,12.41874983]
[1770110130936,0.0011,2287.1,2286.5,13.33574983]
[1770110131276,1e-08,2287.8,2286.5,12.41874983]
[1770110131935,1e-08,2287.8,2286.4,0.917]
[1770110131936,1e-08,2287.8,2286.9,12.41874983]
[1770110132467,1e-08,2287.8,2287.0,1.09313511]
[1770110132659,1e-08,2287.8,2287.1,12.41874983]
[1770110133371,1e-08,2287.8,2281.4,0.0008]
[1770110133372,0.214,2286.3,2281.4,0.0008]
[1770110133674,0.2335703,2284.6,2282.0,17.27511747]
[1770110133898,3.1939347,2284.6,2282.1,12.893]
[1770110134068,3.1939347,2284.5,2282.1,12.9954]
[1770110134266,2.9603644,2284.7,2282.1,12.9954]
[1770110134573,2.9603644,2284.7,2282.2,1.09543423]
[1770110134574,1.32785376,2284.6,2282.2,1.09543423]
[1770110134769,1.32785376,2284.6,2282.2,13.92214737]
[1770110134770,1.09428346,2284.6,2282.2,13.92214737]
[1770110134975,0.2325703,2284.5,2282.3,12.97296671]
[1770110135673,0.36126658,2284.4,2281.4,0.0008]
[1770110135872,0.00919974,2279.7,2278.4,0.0008]
[1770110136069,0.00919974,2279.7,2278.6,1.09694895]
[1770110136377,2.443549,2281.0,2279.1,1.09687797]
[1770110136580,4.0,2281.3,2278.6,1.09694895]
[1770110136581,0.1024,2281.1,2278.7,4.38844804]
[1770110136782,15.170456,2281.0,2278.7,4.38844804]
[1770110136995,0.1024,2281.1,2278.8,1.09694895]
[1770110137298,8.65540079,2281.7,2278.8,1.09694895]
[1770110137299,0.61539766,2281.7,2279.3,7.59381164]
[1770110137480,1.32854781,2283.2,2279.4,12.41874983]
[1770110137661,4.998644,2282.9,2280.1,12.41874983]
[1770110137869,14.633612,2283.5,2280.1,12.41874983]
[1770110138060,1.09471471,2283.7,2280.4,12.41874983]
[1770110138270,1.09433136,2284.5,2281.1,12.41874983]
[1770110138479,12.84590367,2284.8,2281.3,12.41874983]
[1770110138480,1.09447508,2284.2,2281.3,12.41874983]
[1770110138679,2.38356,2284.0,2281.3,12.41874983]
[1770110138877,1.0944547,2284.3,2281.2,2.19286338]
[1770110138878,0.87773251,2283.9,2281.4,13.47183526]
[1770110139102,0.87773251,2283.8,2281.5,13.33574983]
[1770110139303,1.0944547,2284.3,2281.6,1.05308543]
[1770110139495,0.1024,2284.1,2281.6,1.05308543]
[1770110139684,0.1024,2283.9,2281.6,13.47183526]
[1770110139995,1.0969216,2284.2,2281.6,13.47183526]
[1770110140161,1.0944547,2284.3,2281.6,13.47183526]
[1770110140368,1.0943905,2284.4,2281.8,12.41874983]
[1770110140567,4.37661568,2284.9,2282.0,12.41874983]
[1770110140568,2.19112915,2284.8,2282.0,12.41874983]
[1770110140805,0.87809535,2284.7,2282.0,12.41874983]
[1770110141102,1.09418903,2284.8,2282.2,12.41874983]
[1770110141277,0.8781217,2284.7,2282.4,12.41874983]
[1770110141467,1.0940919,2285.0,2282.5,13.47183526]
[1770110141669,1.09405313,2285.1,2282.5,13.47183526]
[1770110142067,1.09405313,2285.1,2282.6,1.05308543]
[1770110142068,1.0969216,2284.9,2282.6,1.05308543]
[1770110142292,1.09405313,2285.1,2282.4,12.41874983]
[1770110142492,0.2335703,2284.8,2282.5,1.09529025]
[1770110142792,0.2335703,2284.8,2282.4,16.79991083]
[1770110142793,1.0969216,2284.6,2282.4,1.54841132]
[1770110142991,0.2335703,2284.4,2282.4,1.54841132]
[1770110143404,1.3304919,2284.7,2282.4,1.54841132]
[1770110143596,0.8794292,2284.6,2282.4,13.96716115]
[1770110143804,1.09413978,2284.9,2282.4,13.96716115]
[1770110144096,1.09411875,2285.0,2282.4,13.96716115]
[1770110144299,0.88123805,2284.9,2282.4,13.96716115]
[1770110144473,0.88123805,2284.8,2282.4,13.87948137]
[1770110144668,1.0969216,2285.2,2282.5,0.1024]
[1770110144894,0.88126585,2285.1,2282.6,13.70115548]
[1770110145194,0.0011,2284.6,2282.6,13.70115548]
[1770110145900,0.0011,2284.6,2283.0,12.41874983]
[1770110146066,1.0969216,2285.9,2283.5,7.59381164]
[1770110146270,2.94851585,2286.5,2283.5,7.59381164]
[1770110146271,1.0935767,2286.1,2283.6,12.41874983]
[1770110146497,3.07412151,2286.1,2283.7,1.09471471]
[1770110146811,0.0011,2285.8,2283.8,13.33574983]
[1770110146976,0.0011,2285.8,2283.8,12.78415548]
[1770110147176,0.0011,2285.8,2284.0,12.41874983]
[1770110147678,0.0011,2285.8,2284.2,12.41874983]
[1770110148195,0.0011,2285.8,2284.3,0.36540565]
[1770110148588,0.0011,2285.8,2284.4,1.09437926]
[1770110148801,0.0011,2285.8,2284.4,1.05056501]
[1770110149098,0.0011,2285.8,2284.5,0.36540565]
[1770110149308,0.0011,2285.8,2284.6,12.41874983]
[1770110149974,0.0011,2285.8,2284.7,12.78415548]
[1770110150197,0.0011,2285.8,2284.7,13.33574983]
[1770110150399,0.0011,2285.8,2284.8,0.36540565]
[1770110150606,0.0011,2285.8,2284.9,1.09413978]
[1770110150909,0.0011,2285.8,2285.0,0.36540565]
[1770110151404,0.0011,2285.8,2285.1,12.68017028]
[1770110152103,1.09323071,2286.8,2285.2,12.79829134]
[1770110152284,0.88451188,2286.7,2285.2,12.43398569]
[1770110152614,1.0969216,2287.1,2285.4,13.5278861]
[1770110152819,1.09299173,2287.3,2285.4,13.5278861]
[1770110153016,0.88471348,2287.2,2285.6,12.43398569]
[1770110153216,2.18989108,2287.4,2285.6,12.43398569]
[1770110153418,2.18989108,2287.4,2285.5,1.28130565]
[1770110153419,0.88456478,2287.3,2285.7,12.79829134]
[1770110153620,0.88456478,2287.2,2285.7,13.71529134]
[1770110153798,0.88456478,2287.1,2285.7,13.71529134]
[1770110154122,2.18989108,2287.4,2285.7,13.71529134]
[1770110154319,1.0969216,2286.6,2285.3,1.09393376]
[1770110154502,0.88454371,2286.5,2285.5,1.09385254]
[1770110154815,0.88454371,2286.4,2285.4,1.05006941]
[1770110154979,2.19023099,2286.7,2285.5,0.2223822]
[1770110155178,0.88404123,2286.6,2285.5,0.2223822]
[1770110155411,1.0969216,2286.4,2285.4,1.09389849]
[1770110155598,0.88404123,2286.3,2285.4,1.31628069]
[1770110155785,0.88404123,2286.2,2285.5,0.2223822]
[1770110155983,1.0969216,2286.6,2285.5,0.2223822]
[1770110156189,1.09328992,2286.7,2285.5,0.2223822]
[1770110156486,1.97760947,2286.6,2285.6,1.09380469]
[1770110156692,0.8842512,2286.5,2285.6,1.09380469]
[1770110156909,0.8842512,2286.5,2285.7,0.2223822]
[1770110157416,1.09332935,2286.6,2285.7,0.2223822]
[1770110157579,0.884466,2286.5,2285.7,0.2223822]
[1770110157782,1.09332935,2286.6,2285.7,0.2223822]
[1770110158010,0.88446916,2286.5,2285.7,0.2223822]
[1770110158216,1.09332935,2286.6,2285.7,0.2223822]
[1770110158384,0.88484334,2286.5,2285.7,0.2223822]
[1770110158711,1.09333184,2286.6,2285.8,1.09370898]
[1770110158890,1.09330936,2286.7,2285.8,1.04991061]
[1770110159098,1.09330936,2286.7,2285.2,4.37541019]
[1770110159099,1.1427,2284.2,2280.6,0.003]
[1770110159300,0.1024,2281.5,2279.3,7.78256061]
[1770110159616,2.2056643,2281.0,2278.7,12.43398569]
[1770110159784,1.10248429,2280.6,2278.7,12.43398569]
[1770110159989,0.2335703,2280.2,2278.7,12.43398569]
[1770110160187,0.2335703,2280.0,2278.7,12.43398569]
[1770110160406,0.2335703,2280.3,2278.7,12.43398569]
[1770110160716,1.98519326,2280.3,2278.8,1.09706863]
[1770110161019,0.88270897,2280.2,2278.7,13.53107643]
[1770110161187,2.19869463,2280.6,2278.7,13.53107643]
[1770110161386,0.88118861,2280.5,2278.7,13.53107643]
[1770110161624,0.88118861,2280.4,2278.7,13.53107643]
[1770110161846,0.22745142,2281.7,2280.1,12.43398569]
[1770110161990,1.0950024,2283.1,2280.6,12.43398569]
[1770110162313,2.2056643,2282.6,2280.6,12.43398569]
[1770110162516,2.2056643,2282.5,2280.2,0.917]
[1770110162690,0.1024,2282.3,2280.1,1.09640627]
[1770110162892,2.2056643,2282.3,2280.2,1.09638819]
[1770110163738,3.30095455,2282.6,2280.3,12.43398569]
[1770110163956,1.0952423,2282.6,2280.3,12.43398569]
[1770110164224,1.09510312,2282.9,2280.3,12.43398569]
[1770110164427,3.30076742,2282.9,2280.3,12.43398569]
[1770110164591,3.30076742,2282.9,2280.7,12.43398569]
[1770110164790,1.09510312,2282.9,2280.7,12.43398569]
[1770110165004,1.09502278,2283.1,2280.7,12.43398569]
[1770110166514,3.3006049,2283.3,2280.9,12.43398569]
[1770110166839,1.0949406,2283.3,2281.1,12.43398569]
[1770110167347,1.0949406,2283.3,2281.3,12.43398569]
[1770110167516,3.3006049,2283.3,2281.3,12.43398569]
[1770110168450,0.2335703,2283.2,2281.3,12.43398569]
[1770110168830,1.0950024,2283.1,2281.4,1.09581835]
[1770110169147,2.2056643,2283.0,2281.4,1.09581835]
[1770110169320,1.0950024,2283.1,2280.8,1.09607635]
[1770110169321,2.2056643,2282.5,2280.8,1.09607635]
[1770110169522,2.2056643,2282.3,2281.3,1.09585772]
[1770110169827,2.2056643,2282.3,2280.3,2.13188184]
[1770110169828,2.2056643,2282.3,2273.9,11.46155231]
[1770110169829,1.53844769,2278.7,2273.9,11.46155231]
[1770110170155,1.53844769,2278.7,2273.4,15.29745679]
[1770110170156,0.1024,2275.8,2273.4,0.0008]
[1770110170452,9.82284813,2276.6,2273.5,12.43478569]
[1770110170625,0.2335703,2276.0,2273.5,12.43478569]
[1770110170828,7.3295003,2275.8,2273.5,12.43478569]
[1770110171166,0.10568,2275.8,2273.5,12.43478569]
[1770110171321,0.00328,2275.8,2273.5,13.53438999]
[1770110171655,8.55141515,2277.3,2273.5,13.51430519]
[1770110171954,7.63341515,2277.7,2274.4,10.72592407]
[1770110172249,1.09755026,2277.8,2274.8,12.43398569]
[1770110172436,1.4915027,2278.4,2275.0,12.43398569]
[1770110172753,3.1265,2278.3,2275.0,12.43398569]
[1770110172925,1.09740573,2278.1,2275.1,1.09885279]
[1770110173271,0.1024,2278.0,2275.1,1.09885279]
[1770110173626,0.2335703,2277.9,2275.1,13.53283848]
[1770110173858,0.1024,2277.8,2275.1,13.53283848]
[1770110174163,1.09677985,2279.5,2275.8,12.43398569]
[1770110174322,4.38750438,2279.3,2275.8,12.43398569]
[1770110174517,4.38750438,2279.4,2276.1,12.43398569]
[1770110174944,4.38750438,2279.4,2276.3,12.43398569]
[1770110175279,4.38750438,2279.4,2276.1,4.39328705]
[1770110175280,0.86102125,2279.3,2276.1,1.09836603]
[1770110175481,16.86144,2279.3,2276.1,13.53235172]
[1770110175780,16.85844,2279.3,2276.1,13.53235172]
[1770110175948,2.605234,2279.3,2276.1,13.53235172]
[1770110176343,4.38750438,2279.4,2276.3,7.63341515]
[1770110176674,1.1184611,2279.6,2276.8,12.43398569]
[1770110176873,1.1184611,2279.6,2277.2,12.43398569]
[1770110177671,1.1184611,2279.6,2276.8,4.39155065]
[1770110177672,1.6863886,2277.2,2271.0,4.40326522]
[1770110177985,0.2335703,2271.4,2270.7,12.90361031]
[1770110178205,12.433985,2271.2,2270.1,12.43398569]
[1770110178393,2.2506248,2273.4,2270.1,12.43398569]
[1770110178394,12.433985,2271.5,2270.1,12.43398569]
[1770110178545,12.433985,2271.4,2270.3,1.10113535]
[1770110178844,12.433985,2271.3,2270.2,1.10122456]
[1770110179044,12.18309159,2271.3,2270.2,1.10122456]
[1770110179345,11.80092996,2271.5,2270.2,13.53521025]
[1770110179547,11.69852996,2272.0,2270.2,13.53521025]
[1770110180048,0.1024,2273.6,2270.2,13.53521025]
[1770110180260,4.3977926,2273.9,2270.2,0.55122456]
[1770110180261,13.0221303,2273.8,2270.2,0.55122456]
[1770110180469,0.2335703,2274.2,2271.0,12.35648601]
[1770110180956,0.2335703,2274.2,2270.2,1.10122456]
[1770110180957,1.1000132,2272.7,2269.9,0.0008]
[1770110181359,1.1000132,2272.7,2269.9,12.35728601]
[1770110181557,4.39869517,2273.5,2269.9,12.35728601]
[1770110181558,8.432234,2273.5,2269.9,12.35728601]
[1770110181784,0.1024,2273.5,2270.1,12.35648601]
[1770110182281,0.1024,2273.3,2270.1,12.35648601]
[1770110182578,0.1024,2273.5,2270.2,12.45888601]
[1770110182878,0.1024,2273.3,2270.4,12.35648601]
[1770110183292,1.09948104,2273.8,2270.8,12.35648601]
[1770110183586,3.55181023,2273.9,2271.0,12.35648601]
[1770110183759,3.260748,2273.8,2271.0,12.35648601]
[1770110183953,28.459694,2273.8,2271.0,12.35648601]
[1770110184283,11.9226009,2273.5,2270.3,1.10117605]
[1770110184487,0.1024,2273.7,2264.3,12.35648601]
[1770110184488,10.64991179,2270.8,2264.3,12.35648601]
[1770110184779,10.64991179,2270.8,2261.5,14.14964866]
[1770110184780,1.70964668,2271.0,2263.4,12.35648601]
[1770110184781,14.07986478,2264.3,2263.4,12.35648601]
[1770110184983,12.4738588,2264.9,2263.0,12.35648601]
[1770110185193,12.4738588,2264.9,2262.9,1.10477705]
[1770110185194,0.22911416,2267.7,2264.1,12.35648601]
[1770110185373,0.22911416,2267.7,2265.1,12.35648601]
[1770110185374,4.41015109,2267.5,2265.1,12.35648601]
[1770110185560,1.10248721,2267.6,2265.4,12.980425]
[1770110185881,4.40643851,2269.5,2266.0,12.35648601]
[1770110186058,0.19875916,2269.5,2266.5,12.35648601]
[1770110186259,0.19875916,2269.5,2266.6,0.60949514]
[1770110186450,0.19875916,2269.5,2266.8,12.35648601]
[1770110186657,0.19875916,2269.5,2266.9,7.63341515]
[1770110186958,0.19875916,2269.5,2267.0,1.102779]
[1770110186959,1.21010787,2269.5,2267.0,1.102779]
[1770110187787,0.10851581,2269.5,2267.0,2.023779]
[1770110188087,0.10851581,2269.5,2267.1,0.1024]
[1770110188272,0.10851581,2269.5,2267.6,7.63341515]
[1770110188582,0.10851581,2269.5,2267.7,0.1024]
[1770110188787,0.04415272,2269.9,2267.7,0.1024]
[1770110189081,4.76613025,2270.5,2267.9,0.1024]
[1770110189283,3.03621016,2271.9,2269.1,0.1024]
[1770110189484,63.4469,2274.2,2269.1,0.1024]
[1770110189485,1.09972286,2273.3,2269.8,0.1024]
[1770110189656,1.09972286,2273.3,2270.5,0.1024]
[1770110189657,16.989648,2273.3,2270.5,0.1024]